fUSD/lending_fUSD_20260307
["ID","MTS","AMOUNT","RATE_DAILY","PERIOD"]
[407876504,1772869838654,-500.0,0.00016271,2]
[407876505,1772869838663,-151.0,0.00016271,2]
[407876506,1772869838672,-500.0,0.00016271,2]
[407876507,1772869838681,-151.0,0.00016271,2]
[407876508,1772869838690,-500.0,0.00016271,2]
[407876509,1772869838699,-151.0,0.00016271,2]
[407876510,1772869838709,-500.0,0.00016271,2]
[407876511,1772869838718,-151.0,0.00016271,2]
[407876512,1772869838727,-500.0,0.00016271,2]
[407876513,1772869838736,-151.0,0.00016271,2]
[407876514,1772869838745,-500.0,0.00016271,2]
[407876515,1772869838754,-151.0,0.00016271,2]
[407876516,1772869838763,-151.0,0.00016271,2]
[407876517,1772869838773,-500.0,0.00016271,2]
[407876518,1772869838782,-151.0,0.00016271,2]
[407876519,1772869838791,-500.0,0.00016271,2]
[407876520,1772869838800,-500.0,0.00016271,2]
[407876521,1772869838810,-500.0,0.00016271,2]
[407876522,1772869838819,-84.97526909,0.00016271,2]
[407876523,1772869838834,-415.02473091,0.00016271,2]
[407876524,1772869838843,-500.0,0.00016271,2]
[407876525,1772869838852,-385.59294579,0.00016271,2]
[407876526,1772869838863,-114.40705421,0.00016271,2]
[407876527,1772869838872,-500.0,0.00016271,2]
[407876528,1772869838882,-500.0,0.00016271,2]
[407876529,1772869838891,-495.74462624,0.00016271,2]
[407876530,1772869838901,-153.13,0.00016393,2]
[407876531,1772869838911,-166.66,0.00016442,2]
[407876532,1772869838920,-397.18,0.00016503,2]
[407876533,1772869838930,-153.13,0.00016663,2]
[407876534,1772869838939,-500.0,0.00016699,2]
[407876535,1772869838950,-500.0,0.00016699,2]
[407876536,1772869838961,-151.0,0.00016699,2]
[407876537,1772869838971,-500.0,0.00016699,2]
[407876538,1772869838980,-500.0,0.00016699,2]
[407876539,1772869838989,-500.0,0.00016699,2]
[407876540,1772869839000,-500.0,0.00016699,2]
[407876541,1772869839010,-506.82131153,0.00016699,2]
[407876542,1772869839022,-502.32320781,0.00016699,2]
[407876543,1772869839032,-442.86541715,0.00016699,2]
[407876544,1772869839048,-57.13458285,0.00016699,2]
[407876545,1772869839057,-365.59635784,0.00016699,2]
[407876546,1772869839069,-143.44015401,0.00016699,2]
[407876547,1772869839079,-497.49770464,0.00016709,2]
[407876548,1772869839089,-166.66,0.00016761,2]
[407876549,1772869839098,-500.0,0.00016799,2]
[407876550,1772869839107,-500.0,0.00016799,2]
[407876551,1772869839117,-500.0,0.00016799,2]
[407876552,1772869839126,-500.0,0.00016799,2]
[407876553,1772869839136,-500.0,0.00016799,2]
[407876554,1772869839146,-648.25476107,0.00016799,2]
[407876555,1772869839156,-500.0,0.00016799,2]
[407876556,1772869839166,-200.0,0.00016819,2]
[407876557,1772869839175,-1069.23,0.00016823,2]
[407876558,1772869839184,-641.54,0.00016823,2]
[407876559,1772869839193,-397.18,0.00016887,2]
[407876560,1772869839203,-153.13,0.00016933,2]
[407876561,1772869839212,-200.0,0.00017195,2]
[407876562,1772869839221,-153.13,0.00017203,2]
[407876563,1772869839230,-507.0,0.00017216,2]
[407876564,1772869839239,-2000.0,0.00017238,2]
[407876565,1772869839249,-200.0,0.00017367,2]
[407876566,1772869839259,-1500.0,0.00017413,2]
[407876567,1772869839268,-189.66285771,0.00017442,2]
[407876568,1772869839278,-4739.95564537,0.00017442,2]
[407876569,1772869839287,-1066.23194498,0.00017442,2]
[407876570,1772869839297,-3264.19880726,0.00017442,2]
[407876571,1772869839306,-153.13,0.00017473,2]
[407876572,1772869839316,-390.64,0.00017532,2]
[407876573,1772869839325,-390.64,0.00017532,2]
[407876574,1772869839335,-390.64,0.00017532,2]
[407876575,1772869839344,-390.64,0.00017532,2]
[407876576,1772869839354,-390.64,0.00017532,2]
[407876577,1772869839363,-151.0,0.00017539,2]
[407876578,1772869839373,-536.6367715,0.00017541,2]
[407876579,1772869839383,-500.0,0.00017541,2]
[407876580,1772869839681,-500.0,0.00017541,2]
[407876581,1772869839696,-500.0,0.00017541,2]
[407876582,1772869839706,-500.0,0.00017541,2]
[407876583,1772869839715,-500.0,0.00017541,2]
[407876584,1772869839724,-646.12990528,0.00017541,2]
[407876585,1772869839733,-500.0,0.00017541,2]
[407876586,1772869839743,-500.0,0.00017541,2]
[407876587,1772869839752,-500.0,0.00017541,2]
[407876588,1772869839762,-500.0,0.00017541,2]
[407876589,1772869839771,-500.0,0.00017541,2]
[407876590,1772869839780,-352.89122268,0.00017541,2]
[407876591,1772869839789,-500.0,0.00017541,2]
[407876592,1772869839799,-500.0,0.00017541,2]
[407876593,1772869839808,-500.0,0.00017541,2]
[407876594,1772869839817,-233.02803805,0.00017541,2]
[407876595,1772869839826,-174.8465375,0.00017541,2]
[407876596,1772869839835,-500.0,0.00017541,2]
[407876597,1772869839845,-500.0,0.00017541,2]
[407876598,1772869839855,-235.03057136,0.00017541,2]
[407876599,1772869839864,-224.77288326,0.00017541,2]
[407876600,1772869839873,-500.0,0.00017541,2]
[407876601,1772869839883,-209.60793532,0.00017541,2]
[407876602,1772869839892,-500.0,0.00017541,2]
[407876603,1772869839901,-1844467.5923,0.00017542,2]
[407876604,1772869839910,-3352.39,0.00017542,2]
[407876605,1772869839920,-3352.39,0.00017542,2]
[407876606,1772869839929,-3352.39,0.00017542,2]
[407876607,1772869839939,-3352.39,0.00017542,2]
[407876608,1772869839948,-3352.39,0.00017542,2]
[407876609,1772869839958,-3352.39,0.00017542,2]
[407876610,1772869839967,-3352.39,0.00017542,2]
[407876611,1772869839977,-4266.79,0.00017542,2]
[407876612,1772869839987,-511.83612012,0.00017573,2]
[407876613,1772869839997,-1800.0,0.000177,6]
[407876614,1772869840008,-4739.95564535,0.00017715,2]
[407876615,1772869840018,-3264.1988072,0.00017793,2]
[407876616,1772869840028,-3700.0,0.000178,6]
[407876617,1772869840037,-5600.0,0.000179,6]
[407876618,1772869840051,-205.33524266,0.00017915,2]
[407876619,1772869840060,-4739.95564535,0.00017988,2]
[407876620,1772869840070,-3264.1988072,0.00018144,2]
[407876621,1772869840079,-4739.95564535,0.00018261,2]
[407876622,1772869840092,-3264.1988072,0.00018495,2]
[407876623,1772869840103,-4739.95564535,0.00018534,2]
[407876624,1772869840112,-637.0,0.0001863,30]
[407876625,1772869840122,-172.18,0.0001864,2]
[407876626,1772869840132,-1066.23194497,0.00018671,2]
[407876627,1772869840142,-176.69,0.00018782,2]
[407876629,1772869840151,-4739.95564535,0.00018808,2]
[407876630,1772869840161,-500.0,0.00018809,2]
[407876631,1772869840171,-3264.1988072,0.00018847,2]
[407876632,1772869840181,-174.61919141,0.00018999,2]
[407876633,1772869840190,-3000.0,0.00018999,2]
[407876634,1772869840200,-259.13725688,0.00018999,2]
[407876635,1772869840209,-2604.868993,0.00018999,2]
[407876636,1772869840219,-733.32656971,0.00018999,2]
[407876637,1772869840228,-1011.02512724,0.00018999,2]
[407876638,1772869840238,-315.19202845,0.00018999,2]
[407876639,1772869840247,-2500.0,0.00018999,2]
[407876640,1772869840256,-500.0,0.00018999,2]
[407876641,1772869840266,-2500.0,0.00018999,2]
[407876642,1772869840275,-500.0,0.00018999,2]
[407876643,1772869840285,-578.20924308,0.00018999,2]
[407876644,1772869840294,-227.78902697,0.00018999,2]
[407876645,1772869840303,-693.3919763,0.00018999,2]
[407876646,1772869840312,-500.0,0.00018999,2]
[407876647,1772869840322,-500.0,0.00018999,2]
[407876648,1772869840331,-500.0,0.00018999,2]
[407876649,1772869840340,-500.0,0.00018999,2]
[407876650,1772869840350,-500.0,0.00018999,2]
[407876651,1772869840359,-500.0,0.00018999,2]
[407876652,1772869840368,-500.0,0.00018999,2]
[407876653,1772869840377,-500.0,0.00018999,2]
[407876654,1772869840386,-500.0,0.00018999,2]
[407876655,1772869840395,-500.0,0.00018999,2]
[407876656,1772869840404,-262.90206542,0.00018999,2]
[407876657,1772869840413,-500.0,0.00018999,2]
[407876658,1772869840423,-693.3919763,0.00018999,2]
[407876659,1772869840432,-269.917619,0.00018999,2]
[407876660,1772869840442,-151.0,0.00018999,2]
[407876661,1772869840451,-200.0,0.00018999,2]
[407876662,1772869840461,-5000.0,0.00019,7]
[407876663,1772869840474,-5051.73287659,0.00019,2]
[407876664,1772869840483,-5000.0,0.00019,2]
[407876665,1772869840493,-5000.0,0.00019,2]
[407876666,1772869840502,-168.0,0.0001902,2]
[407876667,1772869840514,-719.04747942,0.00019054,2]
[407876668,1772869840522,-151.0,0.00019054,2]
[407876669,1772869840532,-4739.95564535,0.00019081,2]
[407876670,1772869840541,-200.0,0.00019105,2]
[407876671,1772869840550,-745.65223616,0.00019109,2]
[407876672,1772869840559,-503.0,0.0001913,7]
[407876673,1772869840568,-2000.0,0.00019153,2]
[407876674,1772869840577,-773.2413689,0.00019164,2]
[407876675,1772869840586,-155.05699457,0.00019164,2]
[407876676,1772869840596,-3264.1988072,0.00019198,2]
[407876677,1772869840605,-2000.0,0.000192,2]
[407876678,1772869840614,-801.85129955,0.00019219,2]
[407876679,1772869840622,-633.83,0.00019262,14]
[407876680,1772869840632,-380.3,0.00019262,14]
[407876681,1772869840641,-831.51979763,0.00019274,2]
[407876682,1772869840650,-862.28603014,0.00019329,2]
[407876683,1772869840659,-1069.23,0.00019346,2]
[407876684,1772869840672,-641.54,0.00019346,2]
[407876685,1772869840690,-4739.95564535,0.00019354,2]
[407876686,1772869840704,-894.19061326,0.00019384,2]
[407876687,1772869840714,-172.78723296,0.00019412,2]
[407876688,1772869840724,-160.0,0.00019412,2]
[407876689,1772869840733,-927.27566595,0.00019439,2]
[407876690,1772869840743,-168.0,0.00019469,2]
[407876691,1772869840752,-961.58486559,0.00019494,2]
[407876692,1772869840761,-399.0,0.00019497,2]
[407876693,1772869840770,-5000.0,0.000195,7]
[407876694,1772869840779,-3106.924,0.000195,2]
[407876695,1772869840788,-181.885,0.000195,2]
[407876696,1772869840797,-7500.0,0.000195,7]
[407876697,1772869840807,-181.08010149,0.00019547,2]
[407876698,1772869840815,-719.04747942,0.00019547,2]
[407876699,1772869840825,-404.69161307,0.00019547,2]
[407876700,1772869840834,-279.9045709,0.00019547,2]
[407876701,1772869840843,-200.0,0.00019547,2]
[407876702,1772869840852,-3264.1988072,0.00019549,2]
[407876703,1772869840861,-997.16350561,0.00019549,2]
[407876704,1772869840870,-1035.30951273,0.00019598,2]
[407876705,1772869840879,-1011.19541631,0.00019598,2]
[407876706,1772869840888,-1240.38963153,0.00019598,2]
[407876707,1772869840897,-9400.0,0.000196,7]
[407876708,1772869840906,-4739.95564535,0.00019627,2]
[407876709,1772869840915,-168.0,0.00019649,2]
[407876710,1772869840924,-399.0,0.00019672,2]
[407876711,1772869840934,-500.0,0.00019672,2]
[407876712,1772869840943,-500.0,0.00019672,2]
[407876713,1772869840952,-500.0,0.00019672,2]
[407876714,1772869840961,-500.0,0.00019672,2]
[407876715,1772869840971,-810.0,0.00019672,2]
[407876716,1772869840979,-500.0,0.00019672,2]
[407876717,1772869840988,-500.0,0.00019672,2]
[407876718,1772869840997,-500.0,0.00019672,2]
[407876719,1772869841007,-500.0,0.00019672,2]
[407876720,1772869841016,-500.0,0.00019672,2]
[407876721,1772869841025,-500.0,0.00019672,2]
[407876722,1772869841034,-500.0,0.00019672,2]
[407876723,1772869841044,-164.64776858,0.00019672,2]
[407876724,1772869841053,-150.0,0.00019672,2]
[407876725,1772869841062,-150.0,0.00019672,2]
[407876726,1772869841071,-150.0,0.00019672,2]
[407876727,1772869841081,-150.0,0.00019672,2]
[407876728,1772869841098,-150.0,0.00019672,2]
[407876729,1772869841108,-423.0,0.00019672,2]
[407876730,1772869841118,-500.0,0.00019672,2]
[407876731,1772869841133,-1161.0,0.00019672,2]
[407876732,1772869841148,-500.0,0.00019672,2]
[407876733,1772869841157,-484.0,0.00019672,2]
[407876734,1772869841167,-150.0,0.00019672,2]
[407876735,1772869841177,-150.0,0.00019672,2]
[407876736,1772869841187,-858.0,0.00019672,2]
[407876737,1772869841196,-150.0,0.00019672,2]
[407876738,1772869841205,-1800.0,0.000197,7]
[407876739,1772869841215,-500.0,0.00019726,30]
[407876740,1772869841225,-500.0,0.00019727,2]
[407876741,1772869841234,-500.0,0.00019727,2]
[407876742,1772869841243,-525.29398025,0.00019727,2]
[407876743,1772869841253,-500.0,0.00019727,2]
[407876744,1772869841262,-810.0,0.00019727,2]
[407876745,1772869841271,-500.0,0.00019727,2]
[407876746,1772869841280,-500.0,0.00019727,2]
[407876747,1772869841289,-500.0,0.00019727,2]
[407876748,1772869841298,-500.0,0.00019727,2]
[407876749,1772869841307,-500.0,0.00019727,2]
[407876750,1772869841316,-500.0,0.00019727,2]
[407876751,1772869841325,-500.0,0.00019727,2]
[407876752,1772869841334,-150.0,0.00019727,2]
[407876753,1772869841344,-150.0,0.00019727,2]
[407876754,1772869841353,-150.0,0.00019727,2]
[407876755,1772869841362,-150.0,0.00019727,2]
[407876756,1772869841371,-150.0,0.00019727,2]
[407876757,1772869841380,-423.0,0.00019727,2]
[407876758,1772869841389,-500.0,0.00019727,2]
[407876759,1772869841398,-1161.0,0.00019727,2]
[407876760,1772869841407,-484.0,0.00019727,2]
[407876761,1772869841416,-500.0,0.00019727,2]
[407876762,1772869841426,-150.0,0.00019727,2]
[407876763,1772869841435,-858.0,0.00019727,2]
[407876764,1772869841444,-500.0,0.00019782,2]
[407876765,1772869841454,-500.0,0.00019782,2]
[407876766,1772869841463,-500.0,0.00019782,2]
[407876767,1772869841476,-810.0,0.00019782,2]
[407876768,1772869841490,-544.737577,0.00019782,2]
[407876769,1772869841499,-500.0,0.00019782,2]
[407876770,1772869841509,-500.0,0.00019782,2]
[407876771,1772869841519,-500.0,0.00019782,2]
[407876772,1772869841528,-500.0,0.00019782,2]
[407876773,1772869841538,-300.0,0.00019782,2]
[407876774,1772869841547,-623.0,0.00019782,2]
[407876775,1772869841557,-150.0,0.00019782,2]
[407876776,1772869841566,-150.0,0.00019782,2]
[407876777,1772869841575,-150.0,0.00019782,2]
[407876778,1772869841584,-200.0,0.00019782,2]
[407876779,1772869841593,-200.0,0.00019782,2]
[407876780,1772869841602,-423.0,0.00019782,2]
[407876781,1772869841611,-1161.0,0.00019782,2]
[407876782,1772869841621,-500.0,0.00019782,2]
[407876783,1772869841630,-338.69385655,0.00019782,2]
[407876784,1772869841774,-500.0,0.00012737,2]
[407876785,1772869841783,-145.30614345,0.00019782,2]
[407876786,1772869841792,-329.00078399,0.00019782,2]
[407876787,1772869841803,-170.99921601,0.00019782,2]
[407876788,1772869841812,-200.0,0.00019782,2]
[407876789,1772869841821,-568.47936844,0.00019782,2]
[407876790,1772869841839,-289.52063156,0.00019782,2]
[407876791,1772869841848,-1982.76593172,0.000198,7]
[407876792,1772869841863,-962.80323996,0.000198,7]
[407876793,1772869841872,-2000.0,0.000198,2]
[407876794,1772869841881,-2000.0,0.000198,2]
[407876795,1772869841891,-1800.0,0.000198,7]
[407876796,1772869841900,-500.0,0.00019836,2]
[407876797,1772869841909,-500.0,0.00019836,2]
[407876798,1772869841918,-810.0,0.00019836,2]
[407876799,1772869841928,-500.0,0.00019836,2]
[407876800,1772869841937,-500.0,0.00019836,2]
[407876801,1772869841946,-500.0,0.00019836,2]
[407876802,1772869841956,-500.0,0.00019836,2]
[407876803,1772869841965,-150.0,0.00019836,2]
[407876804,1772869841975,-150.0,0.00019836,2]
[407876805,1772869841985,-150.0,0.00019836,2]
[407876806,1772869842000,-423.0,0.00019836,2]
[407876807,1772869842010,-1161.0,0.00019836,2]
[407876808,1772869842019,-500.0,0.00019836,2]
[407876809,1772869842029,-484.0,0.00019836,2]
[407876810,1772869842038,-500.0,0.00019836,2]
[407876811,1772869842048,-858.0,0.00019836,2]
[407876812,1772869842057,-168.0,0.0001987,2]
[407876813,1772869842067,-505.41983925,0.00019873,2]
[407876814,1772869842075,-222.52962526,0.00019885,3]
[407876815,1772869842085,-500.0,0.00019891,2]
[407876816,1772869842094,-500.0,0.00019891,2]
[407876817,1772869842103,-810.0,0.00019891,2]
[407876818,1772869842113,-500.0,0.00019891,2]
[407876819,1772869842122,-500.0,0.00019891,2]
[407876820,1772869842132,-179.48565848,0.00019891,2]
[407876821,1772869842141,-500.0,0.00019891,2]
[407876822,1772869842150,-150.0,0.00019891,2]
[407876823,1772869842159,-150.0,0.00019891,2]
[407876824,1772869842168,-150.0,0.00019891,2]
[407876825,1772869842177,-423.0,0.00019891,2]
[407876826,1772869842186,-1161.0,0.00019891,2]
[407876827,1772869842195,-500.0,0.00019891,2]
[407876828,1772869842204,-484.0,0.00019891,2]
[407876829,1772869842214,-500.0,0.00019891,2]
[407876830,1772869842223,-858.0,0.00019891,2]
[407876831,1772869842233,-25000.0,0.00019891,3]
[407876832,1772869842242,-5800.0,0.00019892,2]
[407876833,1772869842251,-5800.0,0.000199,2]
[407876834,1772869842260,-25000.0,0.000199,3]
[407876835,1772869842269,-10204.9278,0.000199,2]
[407876836,1772869842278,-32918.3967,0.000199,2]
[407876837,1772869842287,-10000.0,0.000199,2]
[407876838,1772869842297,-1000.0,0.000199,2]
[407876839,1772869842306,-20171.82355585,0.000199,3]
[407876840,1772869842315,-189.66285771,0.000199,2]
[407876841,1772869842329,-1800.0,0.000199,7]
[407876842,1772869842347,-25000.0,0.000199,3]
[407876843,1772869842356,-4739.95564535,0.000199,2]
[407876844,1772869842365,-1066.23194497,0.000199,2]
[407876845,1772869842376,-3264.1988072,0.000199,2]
[407876846,1772869842387,-1774.0,0.000199,2]
[407876847,1772869842397,-500.0,0.00019946,2]
[407876848,1772869842407,-236.22884881,0.00019946,2]
[407876849,1772869842417,-810.0,0.00019946,2]
[407876850,1772869842426,-500.0,0.00019946,2]
[407876851,1772869842436,-500.0,0.00019946,2]
[407876852,1772869842445,-500.0,0.00019946,2]
[407876853,1772869842455,-180.0,0.00019946,2]
[407876854,1772869842465,-250.0,0.00019946,2]
[407876855,1772869842477,-250.0,0.00019946,2]
[407876856,1772869842486,-423.0,0.00019946,2]
[407876857,1772869842496,-500.0,0.00019946,2]
[407876858,1772869842506,-1161.0,0.00019946,2]
[407876859,1772869842518,-484.0,0.00019946,2]
[407876860,1772869842529,-500.0,0.00019946,2]
[407876861,1772869842540,-858.0,0.00019946,2]
[407876862,1772869842551,-150.0,0.00019973,2]
[407876863,1772869842560,-151.0,0.00019982,2]
[407876864,1772869842572,-18560.5847505,0.00019985,2]
[407876865,1772869842583,-49137.1044383,0.00019985,2]
[407876866,1772869842593,-5736.0391524,0.00019985,2]
[407876867,1772869842604,-4310.2724794,0.00019985,2]
[407876868,1772869842614,-594073.3343502,0.00019985,2]
[407876869,1772869842625,-204134.8298334,0.00019985,2]
[407876870,1772869842636,-4951.6583346,0.00019985,2]
[407876871,1772869842646,-3386.1372781,0.00019985,2]
[407876872,1772869842657,-153.715172,0.00019988,2]
[407876873,1772869842668,-1992.7059793,0.00019988,2]
[407876874,1772869842677,-151.0,0.00019997,2]
[407876875,1772869842687,-394.11832102,0.00019999,2]
[407876876,1772869842696,-300.0,0.00019999,2]
[407876877,1772869842705,-666.0,0.00019999,2]
[407876878,1772869842719,-300.0,0.00019999,2]
[407876879,1772869842729,-1269.30526258,0.00019999,5]
[407876880,1772869842738,-1269.30526258,0.00019999,5]
[407876881,1772869842747,-256.75572098,0.00019999,2]
[407876882,1772869842756,-2212.0,0.0002,2]
[407876883,1772869842766,-3342511.40315083,0.0002,2]
[407876936,1772869884468,0.04,0.000114,2]
[407876937,1772869884495,499.96,0.000114,2]
[407876938,1772869937030,-200.0,0.00047258,120]
[407876939,1772869937054,-200.0,0.00047258,120]
[407876940,1772869937079,-200.0,0.00047258,120]
[407876941,1772869937105,-200.0,0.00047258,120]
[407876942,1772869937128,-8551.34478197,0.00047258,120]
[407876943,1772869937154,-200.0,0.00047258,120]
[407876944,1772869937177,-200.0,0.00047258,120]
[407876945,1772869937202,-200.0,0.00047258,120]
[407876946,1772869937226,-200.0,0.00047258,120]
[407876947,1772869937250,-200.0,0.00047258,120]
[407876948,1772869937274,-200.0,0.00047258,120]
[407876949,1772869937297,-200.0,0.00047258,120]
[407876950,1772869937321,-200.0,0.00047258,120]
[407876951,1772869937344,-200.0,0.00047258,120]
[407876952,1772869937367,-200.0,0.00047258,120]
[407876953,1772869937390,-262.85719008,0.00047258,120]
[407876954,1772869937415,-5000.0,0.00047258,30]
[407876955,1772869937439,-5000.0,0.00047258,120]
[407876956,1772869937462,-500.0,0.00047258,98]
[407876957,1772869937485,-1000.0,0.00047258,60]
[407876958,1772869937512,-500.0,0.00047258,98]
[407876959,1772869937541,-5000.0,0.00047258,30]
[407876960,1772869937565,-5000.0,0.00047258,30]
[407876961,1772869937592,-5000.0,0.00047258,30]
[407876962,1772869937615,-500.0,0.00047258,98]
[407876963,1772869937639,-5000.0,0.00047258,30]
[407876964,1772869937663,-5000.0,0.00047258,30]
[407876965,1772869937687,-5000.0,0.00047258,30]
[407876966,1772869937710,-3636.0,0.00047258,30]
[407876967,1772869937733,-500.0,0.00047258,98]
[407876968,1772869937757,-5000.0,0.00047258,120]
[407876969,1772869937780,-5000.0,0.00047258,120]
[407876970,1772869937804,-500.0,0.00047258,98]
[407876971,1772869937831,-5000.0,0.00047258,120]
[407876972,1772869937855,-5000.0,0.00047258,120]
[407876973,1772869937879,-5000.0,0.00047258,120]
[407876974,1772869937903,-5000.0,0.00047258,120]
[407876975,1772869937926,-3636.0,0.00047258,120]
[407876976,1772869937951,-500.0,0.00047258,98]
[407876977,1772869937974,-500.0,0.00047258,98]
[407876978,1772869937998,-500.0,0.00047258,98]
[407876979,1772869938021,-500.0,0.00047258,98]
[407876980,1772869938045,-500.0,0.00047258,98]
[407876981,1772869938069,-500.0,0.00047258,98]
[407876982,1772869938094,-500.0,0.00047258,98]
[407876983,1772869938118,-1000.0,0.00047258,120]
[407876984,1772869938141,-500.0,0.00047258,98]
[407876985,1772869938164,-327.38659243,0.00047258,120]
[407876986,1772869938188,-500.0,0.00047258,98]
[407876987,1772869938211,-500.0,0.00047258,98]
[407876988,1772869938234,-500.0,0.00047258,98]
[407876989,1772869938258,-500.0,0.00047258,98]
[407876990,1772869938282,-500.0,0.00047258,98]
[407876991,1772869938684,-500.0,0.00047258,98]
[407876992,1772869938711,-230.00480527,0.00047258,98]
[407876993,1772869938738,-1000.0,0.00047258,60]
[407876994,1772869938763,-1000.0,0.00047258,60]
[407876995,1772869938787,-1000.0,0.00047258,60]
[407876996,1772869938814,-1000.0,0.00047258,60]
[407876997,1772869938839,-1000.0,0.00047258,60]
[407876998,1772869938864,-1000.0,0.00047258,30]
[407876999,1772869938889,-500.0,0.00047258,120]
[407877000,1772869938917,-1000.0,0.00047258,30]
[407877001,1772869938946,-225.0,0.00047258,120]
[407877002,1772869938972,-800.0,0.00047258,31]
[407877003,1772869938997,-800.0,0.00047258,31]
[407877004,1772869939022,-800.0,0.00047258,31]
[407877005,1772869939046,-800.0,0.00047258,31]
[407877006,1772869939072,-800.0,0.00047258,31]
[407877007,1772869939097,-800.0,0.00047258,31]
[407877008,1772869939122,-1000.0,0.00047258,60]
[407877009,1772869939147,-800.0,0.00047258,31]
[407877010,1772869939172,-800.0,0.00047258,31]
[407877011,1772869939197,-800.0,0.00047258,31]
[407877012,1772869939221,-800.0,0.00047258,31]
[407877013,1772869939245,-800.0,0.00047258,31]
[407877014,1772869939271,-800.0,0.00047258,31]
[407877015,1772869939297,-800.0,0.00047258,31]
[407877016,1772869939323,-800.0,0.00047258,31]
[407877017,1772869939352,-800.0,0.00047258,31]
[407877018,1772869939379,-800.0,0.00047258,31]
[407877019,1772869939405,-800.0,0.00047258,31]
[407877020,1772869939431,-800.0,0.00047258,31]
[407877021,1772869939457,-800.0,0.00047258,31]
[407877022,1772869939482,-800.0,0.00047258,31]
[407877023,1772869939510,-800.0,0.00047258,31]
[407877024,1772869939537,-800.0,0.00047258,31]
[407877025,1772869939569,-800.0,0.00047258,31]
[407877026,1772869939596,-800.0,0.00047258,31]
[407877027,1772869939622,-800.0,0.00047258,31]
[407877028,1772869939648,-800.0,0.00047258,31]
[407877029,1772869939675,-800.0,0.00047258,31]
[407877030,1772869939700,-800.0,0.00047258,31]
[407877031,1772869939726,-800.0,0.00047258,31]
[407877032,1772869939753,-800.0,0.00047258,31]
[407877033,1772869939778,-800.0,0.00047258,31]
[407877034,1772869939804,-800.0,0.00047258,31]
[407877035,1772869939829,-800.0,0.00047258,31]
[407877036,1772869939854,-800.0,0.00047258,31]
[407877037,1772869939879,-800.0,0.00047258,31]
[407877038,1772869939906,-800.0,0.00047258,31]
[407877039,1772869939932,-800.0,0.00047258,31]
[407877040,1772869939958,-800.0,0.00047258,31]
[407877041,1772869939987,-800.0,0.00047258,31]
[407877042,1772869940019,-1000.0,0.00047258,60]
[407877043,1772869940044,-1000.0,0.00047258,30]
[407877044,1772869940069,-800.0,0.00047258,31]
[407877045,1772869940095,-800.0,0.00047258,31]
[407877046,1772869940121,-800.0,0.00047258,31]
[407877047,1772869940147,-800.0,0.00047258,31]
[407877048,1772869940172,-800.0,0.00047258,31]
[407877049,1772869940197,-800.0,0.00047258,31]
[407877050,1772869940226,-800.0,0.00047258,31]
[407877051,1772869940251,-800.0,0.00047258,31]
[407877052,1772869940276,-800.0,0.00047258,31]
[407877053,1772869940302,-1000.0,0.00047258,120]
[407877054,1772869940329,-1000.0,0.00047258,60]
[407877055,1772869940354,-1000.0,0.00047258,30]
[407877056,1772869940379,-1000.0,0.00047258,120]